[Event "Vienna Chess Open 2019"]
[Site "Vienna"]
[Date "2019.08.22"]
[Round "7.8"]
[White "Dobrovoljc, Vid"]
[Black "Blohberger, Felix"]
[Result "1/2-1/2"]
[ECO "C42"]
[WhiteElo "2331"]
[BlackElo "2467"]
[Annotator "ChessBase"]
[PlyCount "91"]
[EventDate "2019.08.17"]
[EventType "swiss"]
[EventCountry "AUT"]
[SourceTitle "playchess.com"]
[Source "ChessBase"]
[SourceQuality "1"]
[TimeControl "40/5400+30:1800+30"]

1. e4 {[%emt 0:07:54]} e5 {[%emt 0:00:00]} 2. Nf3 {[%emt 0:00:24]} Nf6 {[%emt 0:00:00]} 3. Nxe5 {[%emt 0:04:04]} d6 {[%emt 0:00:00]} 4. Nf3 {[%emt 0:07:13]} Nxe4 {[%emt 0:00:00]} 5. Qe2 {[%emt 0:06:32]} Qe7 {[%emt 0:00:33]} 6. d3 {[%emt 0:00:29]} Nf6 {[%emt 0:00:21]} 7. Bg5 {[%emt 0:00:19]} Nbd7 {[%emt 0:05:19]} 8. Nc3 {[%emt 0:01:19]} Qxe2+ {[%emt 0:05:09]} 9. Bxe2 {[%emt 0:00:35]} h6 {[%emt 0:00:30]} 10. Be3 {[%emt 0:03:57]} a6 {[%emt 0:09:17]} 11. a4 {[%emt 0:05:27]} b6 {[%emt 0:00:35]} 12. d4 {[%emt 0:05:21]} Bb7 {[%emt 0:00:44]} 13. Rd1 {[%emt 0:03:05]} g6 {[%emt 0:01:23]} 14. O-O {[%emt 0:04:40]} Bg7 {[%emt 0:01:51]} 15. Rfe1 {[%emt 0:03:17]} O-O {[%emt 0:01:46]} 16. Nd2 {[%emt 0:06:07]} Rfe8 {[%emt 0:04:44]} 17. Bf3 {[%emt 0:01:43]} Bxf3 {[%emt 0:00:16]} 18. Nxf3 {[%emt 0:00:07]} Rab8 {[%emt 0:12:30]} 19. Bd2 {[%emt 0:04:23]} Rxe1+ {[%emt 0:05:01]} 20. Rxe1 {[%emt 0:02:16]} Kf8 {[%emt 0:16:27]} 21. b3 {[%emt 0:07:11]} Rc8 {[%emt 0:12:16]} 22. Ne4 {[%emt 0:07:09]} Nxe4 {[%emt 0:04:00]} 23. Rxe4 {[%emt 0:00:06]} b5 {[%emt 0:03:00]} 24. axb5 {[%emt 0:08:12]} axb5 {[%emt 0:00:09]} 25. Re1 {[%emt 0:00:14]} Ra8 {[%emt 0:00:31]} 26. Rc1 {[%emt 0:00:17]} f5 {[%emt 0:05:08]} 27. Be3 {[%emt 0:01:23]} g5 {[%emt 0:03:57]} 28. g3 {[%emt 0:00:09]} Nf6 {[%emt 0:01:20]} 29. c4 {[%emt 0:00:45]} bxc4 {[%emt 0:01:07]} 30. bxc4 {[%emt 0:00:04]} Ne4 {[%emt 0:00:42]} 31. d5 {[%emt 0:03:05]} Kf7 {[%emt 0:02:39]} 32. Bd4 {[%emt 0:04:28]} Nd2 {[%emt 0:02:44]} 33. Bxg7 {[%emt 0:00:40]} Nxf3+ {[%emt 0:00:03]} 34. Kg2 {[%emt 0:00:08]} Nd2 {[%emt 0:01:48]} 35. Bc3 {[%emt 0:01:02]} Nxc4 {[%emt 0:01:07]} 36. Bb4 {[%emt 0:00:16]} Nb6 {[%emt 0:00:31]} 37. Rxc7+ {[%emt 0:00:13]} Kg6 {[%emt 0:00:28]} 38. Rc6 {[%emt 0:02:09]} Nxd5 {[%emt 0:00:17]} 39. Rxd6+ {[%emt 0:00:06]} Nf6 {[%emt 0:00:02]} 40. Bc3 {[%emt 0:00:21]} Rf8 {[%emt 0:00:01]} 41. h3 {[%emt 0:31:40]} g4 {[%emt 0:10:36]} 42. h4 {[%emt 0:00:00]} Rf7 {[%emt 0:01:31]} 43. h5+ {[%emt 0:00:00]} Kg5 {[%emt 0:01:38]} 44. Bd4 {[%emt 0:00:00]} Rf8 {[%emt 0:08:49]} 45. Re6 {[%emt 0:00:00]} Rf7 {[%emt 0:04:13]} 46. Rd6 {[%emt 0:00:00]} 1/2-1/2

[Event "Vienna Chess Open 2019"]
[Site "Vienna"]
[Date "2019.08.22"]
[Round "7.9"]
[White "Nasuta, Grzegorz"]
[Black "Schwabeneder, Florian"]
[Result "1/2-1/2"]
[ECO "C10"]
[WhiteElo "2533"]
[BlackElo "2404"]
[Annotator "ChessBase"]
[PlyCount "87"]
[EventDate "2019.08.17"]
[EventType "swiss"]
[EventCountry "AUT"]
[SourceTitle "playchess.com"]
[Source "ChessBase"]
[SourceQuality "1"]
[TimeControl "40/5400+30:1800+30"]

1. e4 {[%emt 0:00:43]} e6 {[%emt 0:00:00]} 2. d4 {[%emt 0:00:24]} d5 {[%emt 0:00:02]} 3. Nc3 {[%emt 0:00:07]} Be7 {[%emt 0:00:29]} 4. Nf3 {[%emt 0:02:52]} Nf6 {[%emt 0:01:18]} 5. Bd3 {[%emt 0:04:28]} c5 {[%emt 0:00:48]} 6. exd5 {[%emt 0:07:35]} exd5 {[%emt 0:00:10]} 7. dxc5 {[%emt 0:00:33]} Bxc5 {[%emt 0:04:22]} 8. Bg5 {[%emt 0:19:45]} O-O {[%emt 0:23:03]} 9. O-O {[%emt 0:02:10]} Be6 {[%emt 0:00:16]} 10. Qd2 {[%emt 0:03:54]} Nc6 {[%emt 0:13:14]} 11. a3 {[%emt 0:08:37]} Re8 {[%emt 0:02:13]} 12. Rfe1 {[%emt 0:14:54]} h6 {[%emt 0:08:22]} 13. Bh4 {[%emt 0:00:05]} Be7 {[%emt 0:09:04]} 14. h3 {[%emt 0:00:44]} a6 {[%emt 0:04:52]} 15. Rad1 {[%emt 0:04:18]} b5 {[%emt 0:14:15]} 16. Ne2 {[%emt 0:15:47]} Nh5 {[%emt 0:11:41]} 17. Bxe7 {[%emt 0:00:43]} Qxe7 {[%emt 0:00:02]} 18. Nf4 {[%emt 0:03:21]} Nxf4 {[%emt 0:00:19]} 19. Qxf4 {[%emt 0:00:02]} b4 {[%emt 0:01:15]} 20. a4 {[%emt 0:05:20]} Rec8 {[%emt 0:00:36]} 21. Ne5 {[%emt 0:03:24]} Qg5 {[%emt 0:02:35]} 22. Qxg5 {[%emt 0:00:35]} hxg5 {[%emt 0:00:02]} 23. Nf3 {[%emt 0:00:17]} g4 {[%emt 0:00:08]} 24. Ng5 {[%emt 0:00:19]} gxh3 {[%emt 0:00:31]} 25. Nxe6 {[%emt 0:00:11]} fxe6 {[%emt 0:00:01]} 26. Rxe6 {[%emt 0:00:09]} hxg2 {[%emt 0:01:36]} 27. Kxg2 {[%emt 0:01:19]} Rc7 {[%emt 0:01:31]} 28. Rd6 {[%emt 0:00:33]} Ne7 {[%emt 0:00:21]} 29. Re1 {[%emt 0:00:30]} a5 {[%emt 0:00:25]} 30. Ree6 {[%emt 0:00:17]} Kf7 {[%emt 0:00:26]} 31. Ra6 {[%emt 0:00:08]} Rca7 {[%emt 0:00:56]} 32. Rxa7 {[%emt 0:00:17]} Rxa7 {[%emt 0:00:01]} 33. Rd6 {[%emt 0:00:08]} Rc7 {[%emt 0:00:58]} 34. Kf1 {[%emt 0:00:05]} Rc5 {[%emt 0:00:28]} 35. Ke1 {[%emt 0:00:22]} Nc6 {[%emt 0:00:19]} 36. Rd7+ {[%emt 0:00:21]} Kf6 {[%emt 0:00:02]} 37. Rc7 {[%emt 0:01:39]} b3 {[%emt 0:00:13]} 38. Kd2 {[%emt 0:00:02]} bxc2 {[%emt 0:00:18]} 39. Bxc2 {[%emt 0:00:16]} g5 {[%emt 0:01:38]} 40. Bd1 {[%emt 0:01:31]} Ke5 {[%emt 0:00:25]} 41. Rc8 {[%emt 0:14:13]} Kd6 {[%emt 0:15:23]} 42. Rg8 {[%emt 0:05:59]} d4 {[%emt 0:00:12]} 43. Kd3 {[%emt 0:07:31]} Rf5 {[%emt 0:02:04]} 44. f3 {[%emt 0:01:28]} 1/2-1/2

[Event "Vienna Chess Open 2019"]
[Site "Vienna"]
[Date "2019.08.22"]
[Round "7.9"]
[White "Valmana Canto, Jaime"]
[Black "Ragger, Anna-Christina"]
[Result "1-0"]
[ECO "A06"]
[WhiteElo "2406"]
[BlackElo "2406"]
[Annotator "NA"]
[PlyCount "81"]
[EventDate "2019.08.17"]
[EventType "swiss"]
[EventCountry "AUT"]
[SourceTitle "playchess.com"]
[Source "ChessBase"]
[SourceQuality "1"]
[TimeControl "40/5400+30:1800+30"]

1. Nf3 {[%emt 0:00:00]} d5 {[%emt 0:00:00]} 2. g3 {[%emt 0:00:16]} c6 {[%emt 0:00:00]} 3. Bg2 {[%emt 0:00:08]} Bg4 {[%emt 0:00:00]} 4. c4 {[%emt 0:00:54]} e6 {[%emt 0:01:20]} 5. Qb3 {[%emt 0:01:22]} Qb6 {[%emt 0:01:57]} 6. Nc3 {[%emt 0:01:54]} Qxb3 {[%emt 0:07:55]} 7. axb3 {[%emt 0:00:11]} Nd7 {[%emt 0:00:42]} 8. d4 {[%emt 0:03:12]} Ne7 {[%emt 0:23:25]} 9. O-O {[%emt 0:01:54]} Bf5 {[%emt 0:20:14]} 10. c5 {[%emt 0:03:43]} a6 {[%emt 0:01:52]} 11. b4 {[%emt 0:09:36]} Rc8 {[%emt 0:02:06]} 12. Nd2 {[%emt 0:01:59]} Bc2 {[%emt 0:01:36]} 13. Ncb1 {[%emt 0:03:54]} Bxb1 {[%emt 0:03:12]} 14. Rxb1 {[%emt 0:00:27]} g6 {[%emt 0:02:23]} 15. Nb3 {[%emt 0:00:59]} Bg7 {[%emt 0:00:47]} 16. Bf4 {[%emt 0:08:50]} e5 {[%emt 0:03:22]} 17. dxe5 {[%emt 0:01:04]} Bxe5 {[%emt 0:01:49]} 18. Bg5 {[%emt 0:02:12]} Bf6 {[%emt 0:00:43]} 19. Bd2 {[%emt 0:00:12]} O-O {[%emt 0:01:46]} 20. Rfd1 {[%emt 0:05:31]} Rc7 {[%emt 0:01:48]} 21. e4 {[%emt 0:04:50]} dxe4 {[%emt 0:00:54]} 22. Bxe4 {[%emt 0:01:23]} g5 {[%emt 0:08:12]} 23. Kg2 {[%emt 0:17:01]} h6 {[%emt 0:00:06]} 24. h4 {[%emt 0:01:55]} Ne5 {[%emt 0:01:32]} 25. hxg5 {[%emt 0:01:57]} hxg5 {[%emt 0:00:01]} 26. Rh1 {[%emt 0:00:35]} N7g6 {[%emt 0:03:12]} 27. Rh5 {[%emt 0:04:41]} g4 {[%emt 0:00:16]} 28. Bc3 {[%emt 0:02:24]} Re7 {[%emt 0:01:57]} 29. Nd4 {[%emt 0:03:24]} Nf3 {[%emt 0:01:56]} 30. Nf5 {[%emt 0:03:11]} Rxe4 {[%emt 0:00:48]} 31. Bxf6 {[%emt 0:00:11]} Ne1+ {[%emt 0:01:09]} 32. Rxe1 {[%emt 0:00:15]} Rxe1 {[%emt 0:00:03]} 33. Nh6+ {[%emt 0:00:08]} Kh7 {[%emt 0:00:04]} 34. Nxg4+ {[%emt 0:00:06]} Kg8 {[%emt 0:00:02]} 35. Bc3 {[%emt 0:00:12]} Re6 {[%emt 0:02:29]} 36. f4 {[%emt 0:01:44]} Rfe8 {[%emt 0:01:48]} 37. f5 {[%emt 0:00:24]} Re2+ {[%emt 0:01:11]} 38. Kh3 {[%emt 0:03:08]} R8e5 {[%emt 0:02:01]} 39. Nf6+ {[%emt 0:02:13]} Kf8 {[%emt 0:01:20]} 40. fxg6 {[%emt 0:00:12]} Rxh5+ {[%emt 0:00:14]} 41. Nxh5 {[%emt 0:30:07]} 1-0

[Event "Vienna Chess Open 2019"]
[Site "Vienna"]
[Date "2019.08.22"]
[Round "7.10"]
[White "Gumularz, Szymon"]
[Black "Pfreundt, Jakob"]
[Result "1-0"]
[ECO "D35"]
[WhiteElo "2501"]
[BlackElo "2410"]
[Annotator "ChessBase"]
[PlyCount "85"]
[EventDate "2019.08.17"]
[EventType "swiss"]
[EventCountry "AUT"]
[SourceTitle "playchess.com"]
[Source "ChessBase"]
[SourceQuality "1"]
[TimeControl "40/5400+30:1800+30"]

1. d4 {[%emt 0:00:00]} d5 {[%emt 0:00:00]} 2. c4 {[%emt 0:00:00]} e6 {[%emt 0:00:00]} 3. Nc3 {[%emt 0:00:00]} Nf6 {[%emt 0:00:09]} 4. cxd5 {[%emt 0:00:28]} exd5 {[%emt 0:00:25]} 5. Bg5 {[%emt 0:00:30]} c6 {[%emt 0:00:09]} 6. e3 {[%emt 0:00:09]} Be7 {[%emt 0:00:31]} 7. Bd3 {[%emt 0:00:11]} Nbd7 {[%emt 0:00:53]} 8. h3 {[%emt 0:03:55]} Nf8 {[%emt 0:06:59]} 9. Bf4 {[%emt 0:03:05]} Ng6 {[%emt 0:02:25]} 10. Bh2 {[%emt 0:00:10]} O-O {[%emt 0:07:02]} 11. Nf3 {[%emt 0:00:43]} Re8 {[%emt 0:06:44]} 12. Qc2 {[%emt 0:00:29]} a5 {[%emt 0:07:30]} 13. O-O-O {[%emt 0:09:31]} b5 {[%emt 0:03:17]} 14. Ne5 {[%emt 0:02:09]} Bb7 {[%emt 0:02:22]} 15. Kb1 {[%emt 0:00:40]} a4 {[%emt 0:01:56]} 16. g4 {[%emt 0:01:11]} Nd7 {[%emt 0:30:22]} 17. Nxd7 {[%emt 0:51:05]} Qxd7 {[%emt 0:00:07]} 18. Bg3 {[%emt 0:00:38]} Bd6 {[%emt 0:14:44]} 19. Bxd6 {[%emt 0:00:41]} Qxd6 {[%emt 0:00:06]} 20. h4 {[%emt 0:00:20]} Nf8 {[%emt 0:00:35]} 21. g5 {[%emt 0:00:27]} a3 {[%emt 0:02:32]} 22. b3 {[%emt 0:00:11]} Ba6 {[%emt 0:01:21]} 23. Ne2 {[%emt 0:07:19]} b4 {[%emt 0:00:56]} 24. Nf4 {[%emt 0:00:56]} Bxd3 {[%emt 0:00:39]} 25. Nxd3 {[%emt 0:00:09]} Nd7 {[%emt 0:00:47]} 26. Rc1 {[%emt 0:00:09]} Ra6 {[%emt 0:00:45]} 27. Qd2 {[%emt 0:02:11]} Rb6 {[%emt 0:01:03]} 28. h5 {[%emt 0:01:25]} Reb8 {[%emt 0:01:15]} 29. h6 {[%emt 0:06:59]} g6 {[%emt 0:00:34]} 30. f4 {[%emt 0:00:19]} Qe6 {[%emt 0:03:34]} 31. Ka1 {[%emt 0:00:18]} Rb5 {[%emt 0:01:34]} 32. Rc2 {[%emt 0:00:35]} R8b6 {[%emt 0:01:46]} 33. Rhc1 {[%emt 0:02:59]} f6 {[%emt 0:02:11]} 34. gxf6 {[%emt 0:00:49]} Nxf6 {[%emt 0:00:22]} 35. Ne5 {[%emt 0:00:19]} Ne4 {[%emt 0:00:11]} 36. Qd3 {[%emt 0:00:27]} Nc3 {[%emt 0:01:03]} 37. f5 {[%emt 0:03:34]} gxf5 {[%emt 0:00:07]} 38. Rg1+ {[%emt 0:00:08]} Kh8 {[%emt 0:00:17]} 39. e4 {[%emt 0:03:29]} Nxe4 {[%emt 0:01:33]} 40. Rg7 {[%emt 0:00:27]} Nd6 {[%emt 0:00:32]} 41. Qg3 {[%emt 0:03:49]} Rb8 {[%emt 0:07:24]} 42. Rxh7+ {[%emt 0:00:12]} Kxh7 {[%emt 0:00:07]} 43. Qg7# {[%emt 0:00:02]} 1-0

[Event "Vienna Chess Open 2019"]
[Site "Vienna"]
[Date "2019.08.22"]
[Round "7.10"]
[White "Janik, Igor"]
[Black "Matt, Fabian"]
[Result "1-0"]
[ECO "D10"]
[WhiteElo "2483"]
[BlackElo "2271"]
[Annotator "ChessBase"]
[PlyCount "75"]
[EventDate "2019.08.17"]
[EventType "swiss"]
[EventCountry "AUT"]
[SourceTitle "playchess.com"]
[Source "ChessBase"]
[SourceQuality "1"]
[TimeControl "40/5400+30:1800+30"]

1. d4 {[%emt 0:00:00]} d5 {[%emt 0:00:00]} 2. c4 {[%emt 0:00:00]} c6 {[%emt 0:00:00]} 3. Nc3 {[%emt 0:00:08]} Nf6 {[%emt 0:00:03]} 4. cxd5 {[%emt 0:00:25]} cxd5 {[%emt 0:00:08]} 5. Bf4 {[%emt 0:00:04]} Nc6 {[%emt 0:04:26]} 6. e3 {[%emt 0:00:18]} Bf5 {[%emt 0:00:41]} 7. Qb3 {[%emt 0:00:10]} Na5 {[%emt 0:00:08]} 8. Qa4+ {[%emt 0:00:06]} Bd7 {[%emt 0:00:05]} 9. Qc2 {[%emt 0:00:06]} e6 {[%emt 0:01:13]} 10. Bd3 {[%emt 0:00:04]} Be7 {[%emt 0:00:35]} 11. Nf3 {[%emt 0:00:17]} Rc8 {[%emt 0:00:32]} 12. O-O {[%emt 0:02:22]} O-O {[%emt 0:00:40]} 13. h3 {[%emt 0:00:19]} a6 {[%emt 0:01:18]} 14. Rac1 {[%emt 0:03:18]} b5 {[%emt 0:01:56]} 15. Qb1 {[%emt 0:00:07]} b4 {[%emt 0:03:10]} 16. Ne2 {[%emt 0:00:06]} Nc4 {[%emt 0:00:16]} 17. g4 {[%emt 0:01:42]} Bb5 {[%emt 0:05:09]} 18. Ng3 {[%emt 0:04:36]} Nd6 {[%emt 0:04:37]} 19. Ne5 {[%emt 0:03:44]} Nfe4 {[%emt 0:23:01]} 20. Bxb5 {[%emt 0:03:57]} axb5 {[%emt 0:02:03]} 21. Nxe4 {[%emt 0:04:50]} Nxe4 {[%emt 0:03:31]} 22. Qd3 {[%emt 0:03:15]} Bd6 {[%emt 0:13:35]} 23. f3 {[%emt 0:17:12]} Rxc1 {[%emt 0:14:44]} 24. Rxc1 {[%emt 0:00:19]} Ng5 {[%emt 0:00:04]} 25. Kg2 {[%emt 0:00:47]} Bxe5 {[%emt 0:03:58]} 26. dxe5 {[%emt 0:01:40]} f5 {[%emt 0:00:29]} 27. gxf5 {[%emt 0:06:25]} Rxf5 {[%emt 0:01:52]} 28. Qxb5 {[%emt 0:00:22]} h6 {[%emt 0:00:26]} 29. Qa6 {[%emt 0:08:12]} Qe7 {[%emt 0:01:30]} 30. Rc8+ {[%emt 0:04:54]} Kh7 {[%emt 0:00:07]} 31. Qd3 {[%emt 0:03:33]} Qb7 {[%emt 0:08:45]} 32. Rc5 {[%emt 0:09:08]} Kh8 {[%emt 0:00:53]} 33. Rb5 {[%emt 0:01:05]} Qa8 {[%emt 0:00:20]} 34. h4 {[%emt 0:03:14]} d4 {[%emt 0:02:44]} 35. hxg5 {[%emt 0:00:19]} hxg5 {[%emt 0:00:01]} 36. Qe4 {[%emt 0:04:08]} Qe8 {[%emt 0:00:13]} 37. Ra5 {[%emt 0:00:10]} Qg6 {[%emt 0:00:36]} 38. Bg3 {[%emt 0:01:09]} 1-0

[Event "Vienna Chess Open 2019"]
[Site "Vienna"]
[Date "2019.08.22"]
[Round "7.10"]
[White "Miedema, David"]
[Black "Pieper, Thomas"]
[Result "1/2-1/2"]
[ECO "D25"]
[WhiteElo "2371"]
[BlackElo "2371"]
[Annotator "NA"]
[PlyCount "135"]
[EventDate "2019.08.17"]
[EventType "swiss"]
[EventCountry "AUT"]
[SourceTitle "playchess.com"]
[Source "ChessBase"]
[SourceQuality "1"]
[TimeControl "40/5400+30:1800+30"]

1. d4 {[%emt 0:00:00]} d5 {[%emt 0:00:22]} 2. c4 {[%emt 0:00:00]} dxc4 {[%emt 0:00:10]} 3. Nf3 {[%emt 0:00:17]} Nf6 {[%emt 0:00:28]} 4. e3 {[%emt 0:00:06]} Bg4 {[%emt 0:00:39]} 5. Bxc4 {[%emt 0:00:06]} e6 {[%emt 0:00:15]} 6. h3 {[%emt 0:00:06]} Bh5 {[%emt 0:00:54]} 7. Nc3 {[%emt 0:00:05]} Nbd7 {[%emt 0:01:41]} 8. e4 {[%emt 0:01:01]} Bxf3 {[%emt 0:20:00]} 9. Qxf3 {[%emt 0:04:24]} Nb6 {[%emt 0:02:58]} 10. Qd3 {[%emt 0:00:09]} Nxc4 {[%emt 0:00:08]} 11. Qxc4 {[%emt 0:00:04]} c6 {[%emt 0:03:09]} 12. O-O {[%emt 0:02:12]} Be7 {[%emt 0:02:42]} 13. Be3 {[%emt 0:00:32]} O-O {[%emt 0:03:02]} 14. f4 {[%emt 0:02:37]} b5 {[%emt 0:02:36]} 15. Qxc6 {[%emt 0:01:11]} b4 {[%emt 0:03:18]} 16. Nb5 {[%emt 0:02:18]} Rc8 {[%emt 0:15:27]} 17. Qa6 {[%emt 0:01:48]} Nxe4 {[%emt 0:01:40]} 18. Rfc1 {[%emt 0:03:13]} Qd7 {[%emt 0:01:11]} 19. Nxa7 {[%emt 0:02:52]} Ra8 {[%emt 0:03:20]} 20. Qc6 {[%emt 0:00:38]} Rxa7 {[%emt 0:04:10]} 21. Qxe4 {[%emt 0:00:06]} Qd5 {[%emt 0:12:25]} 22. Qxd5 {[%emt 0:05:47]} exd5 {[%emt 0:00:01]} 23. b3 {[%emt 0:00:11]} f5 {[%emt 0:02:55]} 24. Rc2 {[%emt 0:00:45]} Rfa8 {[%emt 0:00:13]} 25. Kf2 {[%emt 0:01:13]} Ra3 {[%emt 0:00:52]} 26. Rb2 {[%emt 0:00:08]} Kf7 {[%emt 0:00:38]} 27. Ke2 {[%emt 0:00:05]} Ke6 {[%emt 0:00:54]} 28. Kd3 {[%emt 0:00:07]} Bd6 {[%emt 0:01:34]} 29. Kc2 {[%emt 0:00:06]} Kd7 {[%emt 0:03:03]} 30. g4 {[%emt 0:01:55]} Re8 {[%emt 0:03:01]} 31. Kd3 {[%emt 0:00:04]} Rf8 {[%emt 0:01:46]} 32. Rf1 {[%emt 0:00:24]} g6 {[%emt 0:00:23]} 33. Rg2 {[%emt 0:01:53]} Ra6 {[%emt 0:00:40]} 34. g5 {[%emt 0:00:27]} Re8 {[%emt 0:01:29]} 35. h4 {[%emt 0:00:06]} Rc6 {[%emt 0:00:40]} 36. Bd2 {[%emt 0:00:19]} Ra8 {[%emt 0:02:48]} 37. Ra1 {[%emt 0:01:56]} Rca6 {[%emt 0:00:44]} 38. Be3 {[%emt 0:00:05]} Ra3 {[%emt 0:01:27]} 39. Rb2 {[%emt 0:00:05]} Ke6 {[%emt 0:01:05]} 40. h5 {[%emt 0:02:32]} Kf7 {[%emt 0:01:27]} 41. hxg6+ {[%emt 0:30:51]} hxg6 {[%emt 0:31:18]} 42. Rh1 {[%emt 0:00:04]} Rxa2 {[%emt 0:00:00]} 43. Rh7+ {[%emt 0:00:00]} Ke6 {[%emt 0:00:00]} 44. Rxa2 {[%emt 0:00:00]} Rxa2 {[%emt 0:00:00]} 45. Rg7 {[%emt 0:00:00]} Rb2 {[%emt 0:00:00]} 46. Rxg6+ {[%emt 0:00:00]} Ke7 {[%emt 0:00:00]} 47. Rg7+ {[%emt 0:00:00]} Ke6 {[%emt 0:00:00]} 48. Rg6+ {[%emt 0:00:00]} Ke7 {[%emt 0:00:00]} 49. Rg7+ {[%emt 0:15:49]} Ke6 {[%emt 0:00:00]} 50. Rb7 {[%emt 0:00:16]} Rxb3+ {[%emt 0:00:00]} 51. Ke2 {[%emt 0:00:09]} Rb2+ {[%emt 0:00:00]} 52. Kf3 {[%emt 0:00:07]} Rc2 {[%emt 0:00:00]} 53. g6 {[%emt 0:01:33]} Rc7 {[%emt 0:00:00]} 54. g7 {[%emt 0:00:04]} Kf7 {[%emt 0:00:00]} 55. Rb5 {[%emt 0:00:03]} Kxg7 {[%emt 0:01:51]} 56. Rxd5 {[%emt 0:00:05]} Be7 {[%emt 0:03:40]} 57. Rxf5 {[%emt 0:00:14]} Rb7 {[%emt 0:00:20]} 58. d5 {[%emt 0:02:19]} Bf6 {[%emt 0:01:00]} 59. d6 {[%emt 0:01:40]} b3 {[%emt 0:00:33]} 60. d7 {[%emt 0:00:05]} Rxd7 {[%emt 0:00:23]} 61. Rb5 {[%emt 0:00:05]} b2 {[%emt 0:00:12]} 62. Ke2 {[%emt 0:01:05]} Kg6 {[%emt 0:00:58]} 63. Bd2 {[%emt 0:00:35]} Bd4 {[%emt 0:00:32]} 64. Kd3 {[%emt 0:00:44]} Bf6+ {[%emt 0:00:46]} 65. Kc2 {[%emt 0:00:06]} Rc7+ {[%emt 0:00:15]} 66. Kb1 {[%emt 0:00:19]} Ra7 {[%emt 0:00:20]} 67. Rxb2 {[%emt 0:00:09]} Bxb2 {[%emt 0:00:08]} 68. Kxb2 {[%emt 0:00:03]} 1/2-1/2

[Event "Vienna Chess Open 2019"]
[Site "Vienna"]
[Date "2019.08.22"]
[Round "7.11"]
[White "Hertneck, Gerald"]
[Black "Halvax, Georg"]
[Result "0-1"]
[ECO "D02"]
[WhiteElo "2495"]
[BlackElo "2403"]
[Annotator "ChessBase"]
[PlyCount "120"]
[EventDate "2019.08.17"]
[EventType "swiss"]
[EventCountry "AUT"]
[SourceTitle "playchess.com"]
[Source "ChessBase"]
[SourceQuality "1"]
[TimeControl "40/5400+30:1800+30"]

1. d4 {[%emt 0:00:00]} d5 {[%emt 0:00:00]} 2. Nf3 {[%emt 0:00:00]} Nf6 {[%emt 0:00:01]} 3. c4 {[%emt 0:00:00]} e6 {[%emt 0:00:08]} 4. g3 {[%emt 0:00:00]} g6 {[%emt 0:10:44]} 5. Bg2 {[%emt 0:00:13]} Bg7 {[%emt 0:00:06]} 6. O-O {[%emt 0:00:18]} O-O {[%emt 0:00:04]} 7. Nc3 {[%emt 0:03:16]} Nc6 {[%emt 0:01:24]} 8. e3 {[%emt 0:06:41]} a5 {[%emt 0:05:47]} 9. Ne5 {[%emt 0:04:54]} Ne7 {[%emt 0:35:08]} 10. b3 {[%emt 0:02:32]} b6 {[%emt 0:01:09]} 11. Ba3 {[%emt 0:00:35]} Bb7 {[%emt 0:01:30]} 12. Rc1 {[%emt 0:01:15]} Re8 {[%emt 0:05:41]} 13. Nb5 {[%emt 0:03:22]} Ba6 {[%emt 0:06:41]} 14. Re1 {[%emt 0:01:25]} Nf5 {[%emt 0:14:25]} 15. Bf1 {[%emt 0:18:21]} Nd6 {[%emt 0:00:46]} 16. Nc3 {[%emt 0:00:07]} Nfe4 {[%emt 0:04:43]} 17. Nxe4 {[%emt 0:05:40]} Nxe4 {[%emt 0:03:58]} 18. Qf3 {[%emt 0:06:56]} Bxe5 {[%emt 0:02:08]} 19. dxe5 {[%emt 0:01:47]} Nd2 {[%emt 0:00:02]} 20. Qf4 {[%emt 0:00:10]} Nxf1 {[%emt 0:00:32]} 21. Rxf1 {[%emt 0:00:05]} c5 {[%emt 0:00:09]} 22. Rfd1 {[%emt 0:00:15]} Bb7 {[%emt 0:00:02]} 23. e4 {[%emt 0:01:35]} d4 {[%emt 0:00:45]} 24. Rd3 {[%emt 0:01:08]} Qe7 {[%emt 0:00:38]} 25. Re1 {[%emt 0:00:57]} a4 {[%emt 0:00:21]} 26. Bc1 {[%emt 0:01:13]} axb3 {[%emt 0:00:11]} 27. axb3 {[%emt 0:03:33]} Ra1 {[%emt 0:00:01]} 28. Kg2 {[%emt 0:04:27]} Rea8 {[%emt 0:00:47]} 29. Qh6 {[%emt 0:02:47]} Qf8 {[%emt 0:00:14]} 30. Qh4 {[%emt 0:00:16]} Qg7 {[%emt 0:00:48]} 31. Rdd1 {[%emt 0:06:28]} R1a2 {[%emt 0:02:33]} 32. Bg5 {[%emt 0:01:17]} Qxe5 {[%emt 0:00:38]} 33. Bf6 {[%emt 0:00:59]} Qf5 {[%emt 0:00:01]} 34. Qf4 {[%emt 0:01:33]} Qxf4 {[%emt 0:00:28]} 35. gxf4 {[%emt 0:00:05]} Rb2 {[%emt 0:00:12]} 36. Kg3 {[%emt 0:08:57]} Raa2 {[%emt 0:00:47]} 37. Ra1 {[%emt 0:02:04]} Rxf2 {[%emt 0:02:16]} 38. Rxa2 {[%emt 0:00:05]} Rxa2 {[%emt 0:00:03]} 39. b4 {[%emt 0:00:08]} cxb4 {[%emt 0:02:47]} 40. Bxd4 {[%emt 0:01:22]} Rc2 {[%emt 0:00:04]} 41. Bf6 {[%emt 0:31:55]} Rxc4 {[%emt 0:17:31]} 42. Rd1 {[%emt 0:00:00]} Rc8 {[%emt 0:00:03]} 43. Rd4 {[%emt 0:00:00]} b3 {[%emt 0:00:03]} 44. Rb4 {[%emt 0:00:00]} b5 {[%emt 0:02:32]} 45. Kf3 {[%emt 0:00:00]} Rc5 {[%emt 0:01:05]} 46. Rxb3 {[%emt 0:00:00]} Rf5 {[%emt 0:01:39]} 47. Bg5 {[%emt 0:00:00]} h6 {[%emt 0:00:46]} 48. Ke3 {[%emt 0:00:00]} Bxe4 {[%emt 0:00:38]} 49. Bxh6 {[%emt 0:00:00]} Rh5 {[%emt 0:00:31]} 50. Kxe4 {[%emt 0:00:00]} Rxh6 {[%emt 0:00:04]} 51. Rxb5 {[%emt 0:00:00]} Rxh2 {[%emt 0:00:06]} 52. Kf3 {[%emt 0:00:00]} Kg7 {[%emt 0:00:12]} 53. Kg3 {[%emt 0:00:00]} Rh5 {[%emt 0:00:17]} 54. Rb7 {[%emt 0:00:00]} e5 {[%emt 0:00:34]} 55. fxe5 {[%emt 0:00:00]} Rxe5 {[%emt 0:00:05]} 56. Kf4 {[%emt 0:00:00]} Rf5+ {[%emt 0:00:10]} 57. Kg4 {[%emt 0:00:00]} Kh6 {[%emt 0:00:25]} 58. Ra7 {[%emt 0:00:00]} Rf1 {[%emt 0:00:09]} 59. Rb7 {[%emt 0:00:00]} f5+ {[%emt 0:00:13]} 60. Kg3 {[%emt 0:00:00]} Kg5 {[%emt 0:00:16]} 0-1